bitfinex-derivatives/quotes_BTCF0:USTF0_20240814
["timestamp","ask_amount","ask_price","bid_price","bid_amount"]
[1723605186293,0.3608,60982.0,60981.0,0.04856002]
[1723605186500,0.3608,60982.0,60980.0,0.0968]
[1723605187296,0.3608,60982.0,60981.0,0.0485217]
[1723605187495,0.11361465,60993.0,60981.0,0.4093217]
[1723605187697,0.081953,60990.0,60984.0,0.0485162]
[1723605187994,0.08176831,60988.0,60985.0,0.081959]
[1723605188197,0.0653036,60986.0,60985.0,0.081959]
[1723605188397,0.0653036,60987.0,60985.0,0.081959]
[1723605188698,0.0653036,60988.0,60985.0,0.081959]
[1723605188901,0.0653036,60988.0,60986.0,0.0499]
[1723605189098,0.0653036,60988.0,60981.0,0.3618]
[1723605189298,0.081957,60987.0,60981.0,0.444765]
[1723605189797,0.081958,60986.0,60981.0,0.444765]
[1723605190304,0.081958,60986.0,60981.0,0.443765]
[1723605190705,0.081958,60986.0,60985.0,0.001]
[1723605191402,0.0653036,60990.0,60985.0,0.001]
[1723605191802,0.5080556,60991.0,60985.0,0.001]
[1723605192311,0.442752,60991.0,60985.0,0.001]
[1723605192512,0.081953,60990.0,60986.0,0.081958]
[1723605192703,0.3608,60991.0,60985.0,0.001]
[1723605192895,0.4261036,60991.0,60985.0,0.001]
[1723605193296,0.3608,60991.0,60985.0,0.001]
[1723605193501,0.081958,60986.0,60985.0,0.001]
[1723605193704,0.081958,60986.0,60981.0,0.3608]
[1723605193901,0.081958,60986.0,60985.0,0.001]
[1723605194096,0.081958,60986.0,60985.0,0.002]
[1723605195112,0.05821498,60986.0,60985.0,0.002]
[1723605195611,0.05821498,60986.0,60985.0,0.083959]
[1723605196209,0.05821498,60986.0,60985.0,0.082959]
[1723605196911,0.05821498,60986.0,60985.0,0.083959]
[1723605200015,0.02656535,60986.0,60985.0,0.07556311]
[1723605201106,0.09833601,60986.0,60985.0,0.07556311]
[1723605202218,0.081951,60991.0,60985.0,0.07556311]
[1723605202517,0.081951,60991.0,60986.0,0.3608]
[1723605203517,0.082951,60991.0,60986.0,0.3608]
[1723605204014,0.001,60991.0,60986.0,0.3618]
[1723605204217,0.2834,60988.0,60985.0,0.002]
[1723605204417,0.081969,60978.0,60977.0,0.19599522]
[1723605204723,0.081973,60975.0,60972.0,0.081977]
[1723605205116,0.081974,60974.0,60968.0,0.4093162]
[1723605205309,0.081974,60974.0,60969.0,0.0485162]
[1723605205707,0.081974,60974.0,60970.0,0.0485162]
[1723605205915,0.081974,60974.0,60969.0,0.0485162]
[1723605206215,0.726174,60974.0,60973.0,0.00024599]
[1723605206720,0.726174,60974.0,60973.0,0.00424599]
[1723605206721,0.808148,60974.0,60973.0,0.00424599]
[1723605207424,0.808148,60974.0,60973.0,0.01024599]
[1723605207616,0.524748,60974.0,60973.0,0.01024599]
[1723605208018,0.524748,60974.0,60973.0,0.00424599]
[1723605208621,0.527748,60974.0,60973.0,0.00524599]
[1723605209610,0.524748,60974.0,60973.0,0.00424599]
[1723605209816,0.524748,60974.0,60973.0,0.00024599]
[1723605210618,0.165948,60974.0,60973.0,0.00124599]
[1723605210823,0.526748,60974.0,60973.0,0.00124599]
[1723605211521,0.526748,60974.0,60973.0,0.00224599]
[1723605215920,0.081981,60969.0,60968.0,0.0485162]
[1723605216120,0.081982,60968.0,60967.0,0.0485162]
[1723605217223,0.081982,60968.0,60964.0,0.36304]
[1723605217224,0.081986,60966.0,60964.0,0.3608]
[1723605217520,0.081986,60965.0,60964.0,0.3608]
[1723605223232,0.09158113,60965.0,60964.0,0.3608]
[1723605224032,0.09158113,60965.0,60961.0,0.00024599]
[1723605224331,0.06531272,60963.0,60961.0,0.00024599]
[1723605224531,0.06531272,60963.0,60962.0,0.3608]
[1723605227223,0.06531272,60963.0,60962.0,0.3628]
[1723605227825,0.09158113,60965.0,60962.0,0.3628]
[1723605228725,0.081986,60965.0,60962.0,0.3628]
[1723605228922,0.081986,60965.0,60964.0,0.3608]
[1723605229930,0.081986,60965.0,60964.0,0.4742]
[1723605230127,0.16364029,60965.0,60964.0,0.4742]
[1723605230628,0.081986,60965.0,60964.0,0.4742]
[1723605231038,0.081986,60965.0,60964.0,0.3608]
[1723605231334,0.195386,60965.0,60964.0,0.3608]
[1723605233138,0.26075929,60965.0,60964.0,0.3608]
[1723605234233,0.195386,60965.0,60964.0,0.3608]
[1723605235137,0.195386,60965.0,60964.0,0.40943732]
[1723605235138,0.27704029,60965.0,60964.0,0.40943732]
[1723605235737,0.13997293,60965.0,60961.0,0.04888331]
[1723605235932,0.55619,60962.0,60961.0,0.00024599]
[1723605236138,0.58276293,60962.0,60961.0,0.00024599]
[1723605236333,0.081998,60956.0,60955.0,0.0478]
[1723605236535,0.22197093,60956.0,60955.0,0.0478]
[1723605236733,0.082,60955.0,60951.0,0.3608]
[1723605236934,0.1134,60952.0,60951.0,0.3608]
[1723605237130,0.17892179,60952.0,60951.0,0.3608]
[1723605237941,0.06552179,60952.0,60951.0,0.3608]
[1723605238143,0.06552179,60953.0,60951.0,0.3608]
[1723605239047,0.06552179,60953.0,60951.0,0.3728]
[1723605239339,0.14752479,60953.0,60951.0,0.3728]
[1723605239645,0.082003,60953.0,60952.0,0.12492198]
[1723605240735,0.082003,60953.0,60952.0,0.20602136]
[1723605240935,0.082003,60953.0,60952.0,0.22002136]
[1723605241337,0.082003,60953.0,60952.0,0.23102136]
[1723605241643,0.082003,60953.0,60952.0,0.10609938]
[1723605241840,0.082003,60953.0,60952.0,0.025]
[1723605246539,0.082003,60953.0,60952.0,0.3858]
[1723605248147,0.082003,60953.0,60952.0,0.025]
[1723605248336,0.082003,60953.0,60952.0,0.3858]
[1723605250748,0.00966632,60956.0,60952.0,0.3858]
[1723605250944,0.081997,60957.0,60952.0,0.3858]
[1723605251143,0.081999,60956.0,60952.0,0.3858]
[1723605252439,0.00932134,60957.0,60952.0,0.3858]
[1723605252646,0.00024599,60958.0,60953.0,0.082002]
[1723605253043,0.08224199,60958.0,60952.0,0.3858]
[1723605253445,0.081999,60956.0,60952.0,0.3858]
[1723605253645,0.081997,60957.0,60952.0,0.3858]
[1723605254443,0.081997,60957.0,60952.0,0.3748]
[1723605254641,0.081997,60957.0,60955.0,0.06481951]
[1723605255445,0.081997,60957.0,60956.0,0.06481951]
[1723605255646,0.081997,60957.0,60955.0,0.06481951]
[1723605256153,0.081997,60957.0,60956.0,0.06481951]
[1723605258058,0.195397,60957.0,60956.0,0.06481951]
[1723605258950,0.195397,60957.0,60956.0,0.06681951]
[1723605259657,0.195397,60957.0,60956.0,0.002]
[1723605261050,0.00975888,60958.0,60956.0,0.002]
[1723605261250,0.12315888,60958.0,60956.0,0.002]
[1723605261449,0.20515488,60958.0,60956.0,0.002]
[1723605262852,0.02657787,60957.0,60956.0,0.002]
[1723605264456,0.02657787,60957.0,60953.0,0.0459]
[1723605264656,0.20515488,60958.0,60956.0,0.002]
[1723605264856,0.02657783,60957.0,60956.0,0.002]
[1723605265353,0.05824233,60957.0,60956.0,0.002]
[1723605266556,0.05824233,60957.0,60953.0,0.0519]
[1723605266867,0.20515488,60958.0,60953.0,0.0519]
[1723605266868,0.17164233,60956.0,60953.0,0.0519]
[1723605267161,0.02657783,60955.0,60953.0,0.0519]
[1723605268852,0.02657783,60955.0,60953.0,0.0599]
[1723605269851,0.1134,60956.0,60954.0,0.12492017]
[1723605270155,0.1134,60956.0,60955.0,0.12492017]
[1723605271656,0.195398,60956.0,60955.0,0.12592017]
[1723605271856,0.1134,60956.0,60955.0,0.12592017]
[1723605272265,0.195398,60956.0,60955.0,0.12592017]
[1723605272768,0.195398,60956.0,60955.0,0.12992017]
[1723605273556,0.195398,60956.0,60955.0,0.12892017]
[1723605274159,0.195398,60956.0,60955.0,0.12892179]
[1723605274562,0.195398,60956.0,60955.0,0.12692179]
[1723605283858,0.195398,60956.0,60955.0,0.12692196]
[1723605284862,0.25364105,60956.0,60955.0,0.002]
[1723605285261,0.25364075,60956.0,60955.0,0.002]
[1723605285770,0.36770216,60956.0,60955.0,0.002]
[1723605288861,0.1134,60956.0,60955.0,0.002]
[1723605289057,0.23837088,60956.0,60955.0,0.002]
[1723605289569,0.02657811,60956.0,60955.0,1.08956]
[1723605289769,0.02657547,60956.0,60955.0,1.00756]
[1723605289969,0.00024599,60958.0,60956.0,0.081998]
[1723605290159,0.02657508,60957.0,60956.0,0.89216]
[1723605290365,0.02657508,60957.0,60956.0,0.4]
[1723605290561,0.02657508,60957.0,60956.0,0.89216]
[1723605290760,0.02657508,60957.0,60956.0,0.195398]
[1723605291271,0.13997508,60957.0,60956.0,0.001]
[1723605291472,0.13997508,60957.0,60956.0,0.082998]
[1723605292271,0.13997508,60957.0,60956.0,0.088998]
[1723605292873,0.1134,60957.0,60956.0,0.21391511]
[1723605293762,0.1134,60957.0,60956.0,0.21891511]
[1723605295170,0.00024599,60958.0,60957.0,0.081997]
[1723605295369,0.00024599,60958.0,60957.0,0.20691411]
[1723605296875,0.00024599,60958.0,60957.0,0.21091411]
[1723605298174,0.00024599,60958.0,60957.0,0.2109049]
[1723605300375,0.00024599,60958.0,60957.0,0.2069049]
[1723605300575,0.00024599,60958.0,60957.0,0.3313049]
[1723605301076,0.00024599,60958.0,60957.0,0.3383049]
[1723605301774,0.00024599,60958.0,60957.0,0.3858049]
[1723605304584,0.1134,60960.0,60957.0,0.3038079]
[1723605304777,0.1134,60960.0,60959.0,0.3608]
[1723605304978,0.1134,60960.0,60959.0,0.4857079]
[1723605306190,0.1134,60960.0,60959.0,0.56770134]
[1723605307382,0.1134,60963.0,60959.0,0.57270134]
[1723605307576,0.1134,60963.0,60960.0,0.2526592]
[1723605307777,0.1134,60963.0,60960.0,0.12775186]
[1723605308385,0.1134,60961.0,60960.0,0.12775186]
[1723605308579,0.1134,60961.0,60960.0,0.2526592]
[1723605309881,0.1134,60961.0,60960.0,0.2059592]
[1723605310500,0.1134,60961.0,60960.0,0.12490734]
[1723605310797,0.1134,60961.0,60960.0,0.20796241]
[1723605311598,0.1134,60961.0,60960.0,0.006]
[1723605312490,0.09166121,60966.0,60960.0,0.006]
[1723605312789,0.1134,60961.0,60960.0,0.006]
[1723605313992,0.1134,60961.0,60960.0,0.004]
[1723605314295,0.1134,60961.0,60960.0,0.005]
[1723605314594,0.1134,60961.0,60960.0,0.3658]
[1723605314995,0.1134,60961.0,60960.0,0.005]
[1723605315194,0.1134,60961.0,60960.0,0.3658]
[1723605315598,0.08223028,60966.0,60960.0,0.3658]
[1723605315898,0.1134,60963.0,60960.0,0.3658]
[1723605316084,0.05823635,60962.0,60960.0,0.3658]
[1723605316399,0.09837452,60961.0,60960.0,0.447793]
[1723605316694,0.09827629,60962.0,60960.0,1.453313]
[1723605316884,0.0097423,60974.0,60973.0,0.081976]
[1723605316885,0.11466445,60974.0,60973.0,0.081976]
[1723605317086,0.0553489,60974.0,60973.0,1.76325921]
[1723605317290,0.0179351,60974.0,60973.0,2.08573828]
[1723605317492,0.0179351,60974.0,60973.0,2.39600951]
[1723605318086,0.0179351,60974.0,60973.0,1.99600951]
[1723605318286,0.0179351,60974.0,60973.0,1.22187869]
[1723605318491,0.0179351,60974.0,60973.0,1.06984522]
[1723605318793,0.0179351,60974.0,60973.0,1.16686198]
[1723605319100,0.0179351,60974.0,60973.0,1.16686188]
[1723605319300,0.0179351,60974.0,60973.0,1.07084522]
[1723605319485,0.0179351,60974.0,60973.0,1.07184522]
[1723605319892,0.0179351,60974.0,60973.0,2.06086188]
[1723605320188,0.0179351,60974.0,60973.0,2.06075785]
[1723605321194,0.0179351,60974.0,60973.0,1.96384522]
[1723605321393,0.0179351,60974.0,60973.0,2.06075785]
[1723605322294,0.00964637,60996.0,60973.0,1.97340079]
[1723605322501,0.1134,61000.0,60995.0,0.4742]
[1723605323092,0.13104509,60996.0,60995.0,0.4742]
[1723605323288,0.15351471,60996.0,60995.0,0.3608]
[1723605324194,0.1134,60996.0,60995.0,0.3618]
[1723605324395,0.11404855,60999.0,60995.0,0.4752]
[1723605324594,0.22744855,61001.0,60998.0,0.1134]
[1723605324897,0.11404855,60999.0,60998.0,0.1134]
[1723605325097,0.11404121,61005.0,61001.0,0.081938]
[1723605325301,0.14743426,61012.0,61004.0,0.4742]
[1723605325302,0.11404121,61006.0,61004.0,0.4742]
[1723605325488,0.22744121,61007.0,61004.0,0.3608]
[1723605325688,0.22744121,61007.0,60999.0,0.0487]
[1723605325689,0.4742,61005.0,60992.0,0.3608]
[1723605325896,0.4742,61005.0,60995.0,0.002]
[1723605325897,0.3608,61000.0,60995.0,0.002]
[1723605326194,0.0484,61004.0,60995.0,0.002]
[1723605326195,0.081942,60998.0,60995.0,0.002]
[1723605326390,0.09763321,60999.0,60997.0,0.4742]
[1723605326593,0.09763321,61000.0,60997.0,0.4742]
[1723605326798,0.1134,61005.0,61000.0,0.081939]
[1723605326799,0.09763321,61002.0,61000.0,0.081939]
[1723605326989,0.09763321,61002.0,61001.0,0.1134]
[1723605327199,0.21103321,61003.0,60999.0,0.1134]
[1723605327403,0.09763321,61001.0,60999.0,0.1134]
[1723605328194,0.09763321,61002.0,60999.0,0.1134]
[1723605328403,0.21103321,61003.0,60999.0,0.1134]
[1723605328703,0.1134,61000.0,60999.0,0.1134]
[1723605328998,0.1134,61000.0,60998.0,0.3608]
[1723605329504,0.21103321,61000.0,60998.0,0.3608]
[1723605329700,0.21103321,61000.0,60999.0,0.001]
[1723605330204,0.1134,61000.0,60999.0,0.001]
[1723605330507,0.1134,61000.0,60998.0,0.3608]
[1723605330803,0.1134,61000.0,60972.0,0.0483876]
[1723605330804,0.4918,60999.0,60988.0,0.3608]
[1723605330997,0.081941,60999.0,60998.0,0.001]
[1723605331409,0.573741,60999.0,60998.0,0.001]
[1723605331594,0.973741,60999.0,60998.0,0.001]
[1723605332000,0.973741,60999.0,60988.0,0.3608]
[1723605332001,0.08195,60992.0,60988.0,0.3608]
[1723605332201,0.19535,60992.0,60988.0,0.3608]
[1723605332404,0.19535,60992.0,60983.0,0.00965815]
[1723605332405,0.68723,60992.0,60983.0,0.3608]
[1723605333114,0.60528,60992.0,60983.0,0.3608]
[1723605333301,0.1134,60984.0,60983.0,0.3608]
[1723605333908,0.081961,60984.0,60983.0,0.3608]
[1723605335403,0.081961,60984.0,60983.0,0.3708]
[1723605336409,0.081961,60984.0,60983.0,0.3748]
[1723605337613,0.081961,60984.0,60983.0,0.006]
[1723605338214,0.14697726,60984.0,60983.0,0.004]
[1723605338512,0.14697726,60984.0,60983.0,0.007]
[1723605338913,0.081961,60984.0,60983.0,0.007]
[1723605339114,0.14705954,60984.0,60983.0,0.007]
[1723605339320,0.081961,60984.0,60983.0,0.007]
[1723605339913,0.081961,60984.0,60983.0,0.006]
[1723605340113,0.081961,60984.0,60983.0,0.007]
[1723605341019,0.081961,60984.0,60983.0,0.004]
[1723605341625,0.081961,60984.0,60983.0,0.002]
[1723605342517,0.10852671,60984.0,60983.0,0.002]
[1723605343724,0.19048771,60984.0,60983.0,0.002]
[1723605344028,0.163938,60978.0,60977.0,0.00024599]
[1723605344229,0.163938,60978.0,60953.0,0.19599522]
[1723605344230,0.34162219,60978.0,60959.0,0.4549]
[1723605344434,0.06526091,60963.0,60959.0,0.45718]
[1723605344625,0.08157614,60967.0,60959.0,0.45718]
[1723605344825,0.08157614,60967.0,60959.0,0.46662829]
[1723605345027,0.081981,60969.0,60966.0,0.3608]
[1723605345327,0.081981,60969.0,60968.0,0.06454017]
[1723605345530,0.081981,60969.0,60967.0,0.06454017]
[1723605346221,0.081981,60969.0,60966.0,0.3608]
[1723605346427,0.081981,60969.0,60968.0,0.06470956]
[1723605347333,0.081981,60969.0,60967.0,0.06470956]
[1723605347831,0.081981,60969.0,60967.0,0.07070956]
[1723605348029,0.081981,60969.0,60968.0,0.004]
[1723605349531,0.081981,60969.0,60967.0,0.013]
[1723605349932,0.081981,60969.0,60968.0,0.006]
[1723605350533,0.081979,60970.0,60968.0,0.006]
[1723605351034,0.081979,60970.0,60968.0,0.011]
[1723605351435,0.081981,60969.0,60968.0,0.011]
[1723605351836,0.163962,60969.0,60968.0,0.011]
[1723605352424,1.056002,60969.0,60968.0,0.006]
[1723605352623,0.081989,60963.0,60962.0,0.00016419]
[1723605354029,0.081989,60963.0,60962.0,0.01316419]
[1723605354229,0.081989,60963.0,60962.0,0.02416419]
[1723605354630,0.081977,60972.0,60962.0,0.10615419]
[1723605354631,0.081983,60968.0,60962.0,0.10615419]
[1723605354933,0.081983,60968.0,60967.0,0.3608]
[1723605356229,0.00982514,60970.0,60964.0,0.04844078]
[1723605356230,0.081986,60966.0,60964.0,0.04844078]
[1723605356536,0.081986,60965.0,60963.0,0.04844078]
[1723605357126,0.081986,60965.0,60964.0,0.04844078]
[1723605358042,0.081986,60965.0,60964.0,0.05744078]
[1723605359136,0.081986,60965.0,60963.0,0.012]
[1723605359839,0.081986,60965.0,60964.0,0.3608]
[1723605360241,0.081986,60965.0,60964.0,0.3718]
[1723605361639,0.081986,60965.0,60964.0,0.3608]
[1723605363637,0.081986,60965.0,60964.0,0.3698]
[1723605364040,0.163972,60965.0,60964.0,0.3808]
[1723605364437,0.17355775,60965.0,60964.0,0.3808]
[1723605365537,0.17355775,60965.0,60964.0,0.02]
[1723605366644,0.09157175,60965.0,60964.0,0.02]
[1723605368935,0.09157175,60965.0,60964.0,0.029]
[1723605373537,0.17355775,60965.0,60964.0,0.029]
[1723605375545,0.09157175,60965.0,60964.0,0.029]
[1723605378041,0.09157175,60965.0,60964.0,0.011]
[1723605378646,0.081989,60963.0,60962.0,0.00016419]
[1723605379245,0.081989,60963.0,60962.0,0.08124773]
[1723605379757,0.081989,60963.0,60962.0,0.00016419]
[1723605380148,0.10856428,60963.0,60962.0,0.00016419]
[1723605381750,0.20681896,60963.0,60962.0,0.00016419]
[1723605382550,0.10856428,60963.0,60962.0,0.00016419]
[1723605382754,0.081989,60963.0,60962.0,0.00016419]
[1723605391551,0.081989,60963.0,60952.0,0.09730025]
[1723605391552,1.35304631,60963.0,60952.0,0.09730025]
[1723605391857,0.081998,60956.0,60955.0,0.08117919]
[1723605392059,0.081999,60955.0,60954.0,0.08117919]
[1723605392370,0.3608,60956.0,60954.0,0.08117822]
[1723605392553,0.00017483,60955.0,60954.0,0.08117822]
[1723605393151,0.00017483,60955.0,60953.0,0.08117822]
[1723605393352,0.1134,60954.0,60953.0,0.08117822]
[1723605393551,0.1134,60954.0,60953.0,0.20610885]
[1723605393959,0.365501,60954.0,60953.0,0.12493063]
[1723605394353,0.082001,60954.0,60953.0,0.12493063]
[1723605394851,0.082001,60954.0,60953.0,0.13393063]
[1723605397961,0.082001,60954.0,60953.0,0.009]
[1723605398552,0.082001,60954.0,60953.0,0.05766769]
[1723605398749,0.082001,60954.0,60953.0,0.06866769]
[1723605401151,0.082001,60954.0,60953.0,0.02]
[1723605406857,0.164002,60954.0,60953.0,0.02]
[1723605408670,0.574202,60953.0,60947.0,0.06490548]
[1723605408964,0.082013,60945.0,60944.0,0.06490548]
[1723605409158,0.082013,60945.0,60940.0,0.17441282]
[1723605409159,0.082016,60943.0,60942.0,0.06490548]
[1723605409356,0.524832,60943.0,60942.0,0.06490548]
[1723605409759,0.082017,60942.0,60941.0,0.06490548]
[1723605409958,0.28363149,60945.0,60940.0,0.0933]
[1723605410162,0.28363149,60945.0,60941.0,0.08111282]
[1723605410567,0.28363149,60945.0,60942.0,0.08111282]
[1723605411158,0.28363149,60945.0,60941.0,0.08111282]
[1723605412155,0.36664549,60945.0,60941.0,0.09011282]
[1723605412660,0.36664549,60945.0,60941.0,0.17213082]
[1723605413060,0.28463149,60945.0,60944.0,0.04867012]
[1723605413960,0.28563149,60945.0,60944.0,0.06267012]
[1723605414566,0.28563149,60945.0,60944.0,0.04867012]
[1723605415067,0.28563149,60945.0,60944.0,0.06267012]
[1723605415456,0.28563149,60945.0,60944.0,0.07567012]
[1723605415859,0.11553149,60945.0,60944.0,0.07567012]
[1723605416660,0.11553149,60945.0,60944.0,0.027]
[1723605422072,0.19754449,60945.0,60944.0,0.027]
[1723605423866,0.19754449,60945.0,60944.0,0.09189591]
[1723605425568,0.19754449,60945.0,60944.0,0.027]
[1723605427672,0.55834449,60945.0,60944.0,0.027]
[1723605427872,1.05058449,60945.0,60944.0,0.027]
[1723605428084,1.05058449,60945.0,60944.0,0.07569091]
[1723605428262,0.44494449,60945.0,60944.0,0.027]
[1723605428468,0.55834449,60945.0,60944.0,0.027]
[1723605431571,0.19754449,60945.0,60944.0,0.027]
[1723605437792,0.55834449,60945.0,60944.0,0.027]
[1723605438377,0.08414449,60945.0,60944.0,0.027]
[1723605438781,0.19754449,60945.0,60944.0,0.027]
[1723605449888,0.55834449,60945.0,60944.0,0.027]
[1723605450083,0.19754449,60945.0,60944.0,0.027]
[1723605450391,0.58493053,60945.0,60944.0,0.027]
[1723605451885,0.08202,60940.0,60939.0,0.04880406]
[1723605452485,0.08198495,60941.0,60936.0,0.00024599]
[1723605452691,0.08202,60940.0,60939.0,0.04880855]
[1723605452897,0.19542,60940.0,60939.0,0.04880855]
[1723605453391,0.082021,60939.0,60938.0,0.04880855]
[1723605454980,0.195421,60939.0,60938.0,0.04880855]
[1723605455792,0.196421,60939.0,60938.0,0.04880855]
[1723605456590,0.20612785,60939.0,60938.0,0.04880855]
[1723605457285,0.082024,60938.0,60937.0,0.08131496]
[1723605457485,0.08219447,60938.0,60937.0,0.20627544]
[1723605459385,0.08319447,60938.0,60937.0,0.20927544]
[1723605459986,0.08419447,60938.0,60937.0,0.21327544]
[1723605461906,0.08319447,60938.0,60937.0,0.21027544]
[1723605462098,0.08219447,60938.0,60937.0,0.08131496]
[1723605462488,0.08419447,60938.0,60937.0,0.08931496]
[1723605463498,0.08219447,60938.0,60937.0,0.08631496]
[1723605463891,0.19559447,60938.0,60937.0,0.21127506]
[1723605464085,0.19559447,60938.0,60937.0,0.1299601]
[1723605464695,0.08219447,60938.0,60937.0,0.1299601]
[1723605465000,0.19559447,60938.0,60937.0,0.1299601]
[1723605465398,0.19559447,60938.0,60937.0,0.005]
[1723605466489,0.11357047,60938.0,60937.0,0.087024]
[1723605466690,0.11357047,60938.0,60937.0,0.447824]
[1723605467600,0.11357047,60938.0,60937.0,0.087024]
[1723605467787,0.11357047,60938.0,60937.0,0.447824]
[1723605470797,0.11357047,60938.0,60937.0,0.3658]
[1723605470996,0.19559247,60938.0,60937.0,0.3658]
[1723605472703,0.19559247,60938.0,60937.0,0.43085972]
[1723605474299,0.08219247,60938.0,60937.0,0.43085972]
[1723605474504,0.19559247,60938.0,60937.0,0.43085972]
[1723605474709,0.11357047,60938.0,60937.0,0.51288372]
[1723605475311,0.11357047,60938.0,60937.0,0.447824]
[1723605476696,0.00017047,60938.0,60937.0,0.561224]
[1723605476898,0.00024599,60949.0,60942.0,0.082017]
[1723605477098,0.1134,60956.0,60948.0,0.3608]
[1723605477305,0.081989,60963.0,60955.0,0.3608]
[1723605477503,0.081989,60963.0,60960.0,0.3608]
[1723605477704,0.081989,60963.0,60962.0,0.06489738]
[1723605478102,0.09179993,60963.0,60961.0,0.0493]
[1723605478303,0.09179993,60963.0,60961.0,0.11413931]
[1723605479214,0.081983,60968.0,60961.0,0.11413931]
[1723605479403,0.081983,60968.0,60963.0,0.04859261]
[1723605479404,0.091983,60968.0,60963.0,0.04859261]
[1723605479604,0.1134,60964.0,60961.0,0.11413931]
[1723605480007,0.1134,60964.0,60962.0,0.06483931]
[1723605480413,0.09837321,60963.0,60961.0,0.0589506]
[1723605480709,0.09837321,60962.0,60961.0,0.0493]
[1723605481100,0.14087846,60962.0,60961.0,0.0503]
[1723605481300,0.17253929,60962.0,60961.0,0.0503]
[1723605481506,0.05823558,60962.0,60961.0,0.0513]
[1723605481905,0.05823558,60962.0,60961.0,0.0523]
[1723605482303,0.17247981,60962.0,60961.0,0.04707001]
[1723605482506,0.18147981,60962.0,60961.0,0.04507001]
[1723605482811,0.10737322,60962.0,60961.0,0.12706101]
[1723605483015,0.22077322,60962.0,60961.0,0.12706101]
[1723605483215,0.29483492,60962.0,60961.0,0.12706101]
[1723605483909,0.30383492,60962.0,60961.0,0.04607001]
[1723605484216,0.30379991,60962.0,60961.0,0.04607001]
[1723605485301,0.18963558,60962.0,60961.0,0.04607001]
[1723605488206,0.18963558,60962.0,60961.0,0.002]
[1723605488406,0.21339,60962.0,60961.0,0.002]
[1723605489710,0.21339,60962.0,60956.0,0.00024599]
[1723605489911,0.4742,60957.0,60956.0,0.00024599]
[1723605491220,0.556197,60957.0,60956.0,0.00024599]
[1723605492717,0.556197,60957.0,60942.0,0.0485834]
[1723605492718,0.96636,60957.0,60942.0,0.0485834]
[1723605493019,0.1134,60948.0,60940.0,0.36316]
[1723605493323,0.082018,60941.0,60940.0,0.3608]
[1723605495319,0.082018,60941.0,60940.0,0.3668]
[1723605495615,0.083018,60941.0,60940.0,0.3668]
[1723605495816,0.084018,60941.0,60940.0,0.3718]
[1723605498324,0.002,60941.0,60940.0,0.3718]
[1723605502121,0.002,60941.0,60940.0,0.011]
[1723605502320,0.002,60941.0,60940.0,0.45382]
[1723605503521,0.002,60941.0,60940.0,0.09302]
[1723605503723,0.002,60941.0,60940.0,1.3461]
[1723605504724,0.00024599,60947.0,60942.0,0.082016]
[1723605505026,0.00024599,60947.0,60946.0,0.04862018]
[1723605506329,0.00024599,60947.0,60944.0,0.082014]
[1723605506530,0.00124599,60947.0,60944.0,0.082014]
[1723605507030,0.00224599,60947.0,60946.0,0.005]
[1723605507225,0.00224599,60947.0,60946.0,0.087012]
[1723605507424,0.00224599,60947.0,60946.0,0.1518389]
[1723605507628,0.00224599,60947.0,60946.0,0.087012]
[1723605508833,0.00224599,60947.0,60946.0,0.082012]
[1723605508834,0.00024599,60947.0,60946.0,0.082012]
[1723605509230,0.00124599,60947.0,60946.0,0.090012]
[1723605509427,0.001,60947.0,60946.0,0.982252]
[1723605509728,0.081992,60961.0,60956.0,0.081998]
[1723605509928,0.081992,60961.0,60957.0,0.04859973]
[1723605510232,0.081992,60961.0,60958.0,0.04859973]
[1723605510434,0.65389888,60964.0,60955.0,0.06479965]
[1723605510435,0.65389888,60964.0,60957.0,0.081997]
[1723605511231,0.081989,60963.0,60957.0,0.081997]
[1723605511432,0.081992,60961.0,60956.0,0.0465]
[1723605511632,0.085992,60961.0,60956.0,0.0465]
[1723605511934,0.085992,60961.0,60955.0,0.0922]
[1723605512132,0.089992,60961.0,60955.0,0.0922]
[1723605512342,0.085992,60961.0,60955.0,0.0922]
[1723605513238,0.088992,60961.0,60955.0,0.0922]
[1723605513635,0.088992,60961.0,60955.0,0.0458]
[1723605514638,0.084992,60961.0,60955.0,0.0458]
[1723605515741,0.086992,60961.0,60955.0,0.09439973]
[1723605515940,0.1134,60956.0,60955.0,0.09439973]
[1723605517033,0.1134,60956.0,60955.0,0.17639873]
[1723605517432,0.1134,60956.0,60955.0,0.127799]
[1723605518141,0.1154,60956.0,60955.0,0.127799]
[1723605518328,0.17363961,60956.0,60955.0,0.127799]
[1723605518944,0.17663961,60956.0,60955.0,0.127799]
[1723605521338,0.17663961,60956.0,60955.0,0.1375776]
[1723605522344,0.17663961,60956.0,60955.0,0.127799]
[1723605523440,0.17663961,60956.0,60955.0,0.081999]
[1723605524943,0.1449766,60956.0,60955.0,0.081999]
[1723605525149,0.17663964,60956.0,60955.0,0.081999]
[1723605525345,0.1184,60956.0,60955.0,0.081999]
[1723605525549,0.1184,60956.0,60955.0,0.127899]
[1723605526852,0.005,60956.0,60955.0,0.127899]
[1723605527054,0.005,60956.0,60955.0,0.25281255]
[1723605528251,0.005,60956.0,60955.0,0.35003805]
[1723605528455,0.1134,60961.0,60955.0,0.17081355]
[1723605528659,0.1134,60961.0,60959.0,0.3608]
[1723605529155,0.1134,60961.0,60959.0,0.53534019]
[1723605530062,0.1134,60961.0,60959.0,0.4553]
[1723605530063,0.1194,60961.0,60959.0,0.4553]
[1723605530259,0.1224,60961.0,60960.0,0.081993]
[1723605530758,0.009,60961.0,60960.0,0.081993]
[1723605530964,0.009,60961.0,60960.0,0.32029285]
[1723605531552,0.003,60961.0,60960.0,0.40228585]
[1723605531756,9.9e-07,60966.0,60965.0,0.163972]
[1723605531952,0.1134,60985.0,60967.0,0.1134]
[1723605532156,0.1134,60985.0,60965.0,0.71969732]
[1723605532157,0.1134,60985.0,60984.0,0.42549459]
[1723605532454,0.0461,60989.0,60984.0,0.3608]
[1723605532455,0.1134,60988.0,60984.0,0.3608]